bitfinex/quotes_SOLUSD_20241125
["timestamp","ask_amount","ask_price","bid_price","bid_amount"]
[1732551445298,3.6929,243.72,243.65,31.56305072]
[1732551445712,31.56305072,243.69,243.59,31.56305072]
[1732551445893,23.776884,243.66,243.59,31.56305072]
[1732551446090,23.776884,243.64,243.55,31.56305072]
[1732551446300,23.776884,243.62,243.55,31.56305072]
[1732551446503,23.776884,243.64,243.57,31.56305072]
[1732551446811,23.776884,243.66,243.61,31.56305072]
[1732551447017,23.776884,243.68,243.61,31.56305072]
[1732551447183,23.776884,243.71,243.63,31.56305072]
[1732551447388,31.56305072,243.71,243.63,31.56305072]
[1732551447991,31.56305072,243.75,243.67,31.56305072]
[1732551448691,31.56305072,243.73,243.65,31.56305072]
[1732551448901,31.56305072,243.71,243.63,31.56305072]
[1732551449086,3.6936,243.66,243.59,31.56305072]
[1732551449281,31.56305072,243.67,243.59,31.56305072]
[1732551449710,31.56305072,243.67,243.59,35.66815072]
[1732551449912,55.33993472,243.67,243.59,31.56305072]
[1732551450299,23.776884,243.67,243.59,31.56305072]
[1732551450990,55.33993472,243.65,243.57,31.56305072]
[1732551451185,31.56305072,243.61,243.51,31.56305072]
[1732551451390,3.6936,243.66,243.49,31.56305072]
[1732551451391,31.56305072,243.57,243.49,31.56305072]
[1732551451625,23.776884,243.56,243.47,31.56305072]
[1732551451797,23.776884,243.54,243.47,31.56305072]
[1732551452494,23.776884,243.52,243.45,31.56305072]
[1732551452901,1.76378652,243.64,243.47,31.56305072]
[1732551452902,23.776884,243.54,243.47,31.56305072]
[1732551453096,23.776884,243.5,243.49,31.56305072]
[1732551453414,23.776884,243.5,243.45,31.56305072]
[1732551453626,23.776884,243.5,243.43,31.56305072]
[1732551453798,61.56305072,243.51,243.35,31.56305072]
[1732551453799,31.56305072,243.44,243.35,31.56305072]
[1732551453998,31.56305072,243.48,243.33,31.56305072]
[1732551453999,23.776884,243.4,243.33,31.56305072]
[1732551454195,23.776884,243.38,243.31,31.56305072]
[1732551454412,23.776884,243.38,243.25,12.967]
[1732551454413,23.776884,243.36,243.29,31.56305072]
[1732551454648,23.776884,243.36,243.25,17.0779]
[1732551454649,23.776884,243.36,243.32,31.56305072]
[1732551455198,30.0,243.34,243.32,31.56305072]
[1732551455397,30.0,243.34,243.32,35.67275072]
[1732551455794,23.776884,243.43,243.32,35.67275072]
[1732551456002,23.776884,243.43,243.39,31.56305072]
[1732551456199,31.56305072,243.44,243.37,31.56305072]
[1732551456399,43.22836375,243.45,243.37,19.45147975]
[1732551456614,49.45147975,243.39,243.29,19.45147975]
[1732551456893,23.776884,243.35,243.27,19.45147975]
[1732551457523,30.0,243.39,243.33,19.45147975]
[1732551457825,23.776884,243.38,243.35,19.45147975]
[1732551458006,23.776884,243.38,243.37,19.45147975]
[1732551458348,23.776884,243.47,243.37,19.45147975]
[1732551458623,23.776884,243.47,243.4,19.45147975]
[1732551458796,19.45147975,243.46,243.38,19.45147975]
[1732551458996,19.45147975,243.44,243.36,19.45147975]
[1732551459319,19.45147975,243.38,243.3,19.45147975]
[1732551459520,23.776884,243.37,243.3,19.45147975]
[1732551460326,3.6974,243.41,243.28,19.45147975]
[1732551460327,23.776884,243.35,243.28,19.45147975]
[1732551460921,23.776884,243.35,243.3,19.45147975]
[1732551461399,23.776884,243.33,243.28,19.45147975]
[1732551461602,23.776884,243.33,243.25,19.45147975]
[1732551461994,23.776884,243.33,243.27,19.45147975]
[1732551462203,23.776884,243.33,243.29,19.45147975]
[1732551462429,23.776884,243.31,243.29,19.45147975]
[1732551462633,30.0,243.32,243.31,19.45147975]
[1732551462804,23.776884,243.31,243.25,19.45147975]
[1732551463410,23.776884,243.29,243.25,19.45147975]
[1732551464033,30.0,243.3,243.27,19.45147975]
[1732551464330,30.0,243.3,243.29,19.45147975]
[1732551464540,19.45147975,243.42,243.29,19.45147975]
[1732551464839,19.45147975,243.42,243.25,4.1109]
[1732551464840,23.14877975,243.42,243.33,19.45147975]
[1732551465422,19.45147975,243.44,243.35,19.45147975]
[1732551465940,19.45147975,243.42,243.33,19.45147975]
[1732551466113,19.45147975,243.36,243.27,19.45147975]
[1732551466511,19.45147975,243.42,243.33,19.45147975]
[1732551466739,20.0,243.41,243.35,19.45147975]
[1732551467110,19.45147975,243.4,243.31,19.45147975]
[1732551467332,0.12549,243.41,243.33,19.45147975]
[1732551467938,23.14877975,243.42,243.27,19.45147975]
[1732551467939,19.45147975,243.35,243.27,19.45147975]
[1732551468133,19.45147975,243.37,243.27,19.45147975]
[1732551468312,19.45147975,243.37,243.29,19.45147975]
[1732551468514,23.776884,243.36,243.29,19.45147975]
[1732551469233,23.776884,243.38,243.29,19.45147975]
[1732551469423,27.474784,243.38,243.29,23.56177975]
[1732551469629,23.776884,243.34,243.27,19.45147975]
[1732551470335,19.45147975,243.33,243.25,19.45147975]
[1732551470527,23.776884,243.32,243.25,19.45147975]
[1732551470726,23.776884,243.27,243.19,4.112]
[1732551470927,23.776884,243.25,243.18,19.45147975]
[1732551471147,23.776884,243.25,243.2,19.45147975]
[1732551471433,23.776884,243.27,243.2,19.45147975]
[1732551471641,23.776884,243.27,243.2,23.56317975]
[1732551471820,23.776884,243.28,243.22,19.45147975]
[1732551472018,23.776884,243.29,243.24,19.45147975]
[1732551472216,23.776884,243.31,243.24,19.45147975]
[1732551473727,23.776884,243.25,243.18,19.45147975]
[1732551474433,23.776884,243.27,243.2,19.45147975]
[1732551475151,23.776884,243.27,243.19,4.1118]
[1732551475152,19.45147975,243.26,243.19,4.1118]
[1732551475332,23.776884,243.25,243.19,4.1118]
[1732551475538,23.776884,243.23,243.14,19.45147975]
[1732551475748,23.776884,243.21,243.14,19.45147975]
[1732551476836,23.776884,243.21,243.14,23.56427975]
[1732551477135,23.776884,243.19,243.12,23.56447975]
[1732551477341,3.7006,243.21,243.1,19.45147975]
[1732551477342,23.776884,243.17,243.1,19.45147975]
[1732551477716,23.776884,243.17,243.16,19.45147975]
[1732551477923,3.6997,243.26,243.16,19.45147975]
[1732551478229,23.15117975,243.26,243.19,19.45147975]
[1732551478557,19.45147975,243.3,243.23,19.45147975]
[1732551478725,30.0,243.24,243.23,19.45147975]
[1732551478921,3.6988,243.32,243.12,29.45147975]
[1732551478922,19.45147975,243.28,243.21,19.45147975]
[1732551479236,19.45147975,243.3,243.23,19.45147975]
[1732551479547,19.45147975,243.26,243.17,19.45147975]
[1732551480046,19.45147975,243.26,243.14,4.1128]
[1732551480047,19.45147975,243.26,243.19,19.45147975]
[1732551480248,0.12549,243.27,243.19,19.45147975]
[1732551480544,23.902374,243.27,243.19,19.45147975]
[1732551480747,12.1184,243.33,243.25,19.45147975]
[1732551480748,31.56987975,243.33,243.25,19.45147975]
[1732551481045,31.56987975,243.33,243.13,20.0]
[1732551481046,19.45147975,243.27,243.19,19.45147975]
[1732551481248,19.45147975,243.25,243.17,19.45147975]
[1732551481968,0.12549,243.26,243.09,19.45147975]
[1732551481969,0.12549,243.17,243.09,19.45147975]
[1732551482244,23.776884,243.13,243.05,23.56567975]
[1732551482456,23.776884,243.15,243.07,19.45147975]
[1732551483136,23.776884,243.13,243.07,23.56537975]
[1732551483651,23.776884,243.14,243.07,23.56537975]
[1732551483948,23.902374,243.15,243.09,19.45147975]
[1732551484118,23.776884,243.17,243.11,19.45147975]
[1732551484444,19.45147975,243.14,243.07,19.45147975]
[1732551484646,23.776884,243.13,243.07,19.45147975]
[1732551485026,19.57696975,243.12,243.03,19.45147975]
[1732551485242,23.776884,243.09,243.01,19.45147975]
[1732551485429,23.776884,243.09,243.03,19.45147975]
[1732551486149,19.57696975,243.12,243.03,19.45147975]
[1732551486150,23.776884,243.11,243.03,19.45147975]
[1732551486353,19.57696975,243.12,243.03,19.45147975]
[1732551486354,23.776884,243.09,243.03,19.45147975]
[1732551486647,27.604274,243.12,243.05,19.45147975]
[1732551486826,23.776884,243.13,243.07,19.45147975]
[1732551487022,23.15277975,243.16,243.09,19.45147975]
[1732551487023,23.776884,243.15,243.09,19.45147975]
[1732551487431,23.776884,243.17,243.09,19.45147975]
[1732551487834,19.57696975,243.16,243.09,19.45147975]
[1732551488036,3.7007,243.2,243.12,19.45147975]
[1732551488237,23.15217975,243.2,243.13,19.45147975]
[1732551488531,19.45147975,243.19,243.12,19.45147975]
[1732551488739,0.12549,243.19,243.13,19.45147975]
[1732551489126,23.15217975,243.2,243.13,19.45147975]
[1732551489127,19.45147975,243.21,243.13,19.45147975]
[1732551489649,3.7003,243.22,243.15,19.45147975]
[1732551489853,3.7003,243.22,243.09,4.1136]
[1732551489854,19.45147975,243.21,243.14,19.45147975]
[1732551490024,19.45147975,243.2,243.13,19.45147975]
[1732551490425,23.15187975,243.22,243.13,19.45147975]
[1732551490848,19.45147975,243.18,243.11,19.45147975]
[1732551491047,19.45147975,243.18,243.09,19.45147975]
[1732551491237,19.45147975,243.2,243.12,19.45147975]
[1732551491546,49.45147975,243.23,243.15,19.45147975]
[1732551491746,30.0,243.23,243.19,19.45147975]
[1732551492053,30.0,243.2,243.19,19.45147975]
[1732551492228,30.0,243.2,243.17,19.45147975]
[1732551492430,30.0,243.2,243.12,13.2167]
[1732551492431,30.0,243.2,243.14,19.45147975]
[1732551492754,19.45147975,243.24,243.17,19.45147975]
[1732551492956,23.776884,243.23,243.17,19.45147975]
[1732551493448,19.45147975,243.26,243.19,19.45147975]
[1732551493636,19.45147975,243.24,243.16,19.45147975]
[1732551493829,23.776884,243.25,243.18,19.45147975]
[1732551494148,3.6994,243.29,243.22,19.45147975]
[1732551494355,19.45147975,243.28,243.2,23.56317975]
[1732551496121,19.45147975,243.28,243.18,23.56347975]
[1732551496122,19.45147975,243.25,243.18,23.56347975]
[1732551496533,9.2469,243.33,243.12,54.4474]
[1732551496534,19.45147975,243.23,243.16,4.1124]
[1732551496756,19.45147975,243.23,243.16,23.56387975]
[1732551497243,19.45147975,243.19,243.12,19.45147975]
[1732551498239,19.45147975,243.19,243.13,4.113]
[1732551499047,23.776884,243.18,243.13,4.113]
[1732551499355,23.776884,243.18,243.12,19.45147975]
[1732551499551,23.776884,243.18,243.12,23.56457975]
[1732551500058,23.776884,243.25,243.16,19.45147975]
[1732551500239,147.4348,243.35,243.12,23.56457975]
[1732551500240,19.45147975,243.28,243.2,19.45147975]
[1732551500438,12.9348,243.35,243.22,19.45147975]
[1732551500439,19.45147975,243.3,243.22,19.45147975]
[1732551500663,19.45147975,243.28,243.2,19.45147975]
[1732551501053,19.45147975,243.3,243.22,19.45147975]
[1732551501636,166.5705,243.39,243.14,0.12549]
[1732551501637,19.45147975,243.34,243.26,19.45147975]
[1732551501946,19.45147975,243.36,243.28,19.45147975]
[1732551502144,19.45147975,243.36,243.3,19.45147975]
[1732551502464,12.217,243.41,243.3,23.56147975]
[1732551502465,19.45147975,243.37,243.3,23.56147975]
[1732551502964,19.45147975,243.43,243.34,19.45147975]
[1732551503172,3.6968,243.45,243.38,19.45147975]
[1732551503173,19.45147975,243.45,243.38,19.45147975]
[1732551503339,19.45147975,243.49,243.4,19.45147975]
[1732551503745,19.45147975,243.51,243.42,19.45147975]
[1732551504052,19.45147975,243.55,243.48,19.45147975]
[1732551504241,19.45147975,243.55,243.49,4.1069]
[1732551504443,19.45147975,243.55,243.48,19.45147975]
[1732551504858,19.45147975,243.55,243.48,23.55837975]
[1732551505369,17.48899088,243.56,243.48,21.59589088]
[1732551506169,0.12549,243.57,243.5,17.48899088]
[1732551506351,17.48899088,243.6,243.52,17.48899088]
[1732551506560,17.48899088,243.62,243.54,17.48899088]
[1732551506870,176.0156,243.7,243.56,17.48899088]
[1732551506871,17.48899088,243.64,243.56,17.48899088]
[1732551508064,0.12549,243.65,243.58,17.48899088]
[1732551508543,17.48899088,243.66,243.58,17.48899088]
[1732551508743,0.12549,243.65,243.58,17.48899088]
[1732551508942,17.48899088,243.63,243.54,17.48899088]
[1732551509544,0.12549,243.6,243.52,17.48899088]
[1732551509751,23.902374,243.58,243.52,17.48899088]
[1732551509950,23.776884,243.58,243.52,17.48899088]
[1732551510149,23.776884,243.62,243.56,17.48899088]
[1732551510379,17.61448088,243.61,243.54,17.48899088]
[1732551510579,23.776884,243.6,243.54,17.48899088]
[1732551510949,17.48899088,243.63,243.56,17.48899088]
[1732551511568,17.48899088,243.65,243.56,17.48899088]
[1732551511775,17.48899088,243.67,243.6,17.48899088]
[1732551511973,0.12549,243.66,243.58,17.48899088]
[1732551512151,23.902374,243.66,243.58,17.48899088]
[1732551512350,23.776884,243.66,243.58,17.48899088]
[1732551512860,23.776884,243.66,243.54,4.1061]
[1732551512861,23.776884,243.66,243.6,17.48899088]
[1732551513064,17.48899088,243.69,243.62,17.48899088]
[1732551513454,17.48899088,243.71,243.62,17.48899088]
[1732551513684,17.48899088,243.73,243.64,17.48899088]
[1732551513977,17.48899088,243.73,243.66,17.48899088]
[1732551514178,17.48899088,243.73,243.66,21.59289088]
[1732551514351,17.48899088,243.73,243.66,4.1039]
[1732551514560,17.48899088,243.71,243.64,21.59329088]
[1732551514852,0.12549,243.72,243.64,21.59329088]
[1732551515371,0.12549,243.68,243.6,17.48899088]
[1732551515671,17.48899088,243.65,243.58,21.59429088]
[1732551515878,0.12549,243.64,243.58,17.48899088]
[1732551516071,0.12549,243.62,243.56,17.48899088]
[1732551516249,0.12549,243.62,243.54,17.48899088]
[1732551516454,0.12549,243.6,243.54,17.48899088]
[1732551516656,0.12549,243.58,243.52,17.48899088]
[1732551516858,0.12549,243.58,243.5,16.8479]
[1732551516859,17.48899088,243.57,243.5,34.33689088]
[1732551517177,17.48899088,243.57,243.5,21.59559088]
[1732551517558,17.48899088,243.63,243.54,17.48899088]
[1732551517755,23.776884,243.64,243.56,17.48899088]
[1732551517960,17.48899088,243.65,243.58,17.48899088]
[1732551518255,0.12549,243.64,243.58,17.48899088]
[1732551518581,17.48899088,243.65,243.58,17.48899088]
[1732551518789,0.12549,243.64,243.56,17.48899088]
[1732551519275,0.12549,243.64,243.57,4.1055]
[1732551519475,0.12549,243.59,243.51,17.48899088]
[1732551519686,0.12549,243.57,243.51,17.48899088]
[1732551519974,0.12549,243.57,243.46,10.2682]
[1732551519975,0.12549,243.57,243.49,17.48899088]
[1732551520361,17.48899088,243.56,243.49,17.48899088]
[1732551521258,17.48899088,243.56,243.47,17.48899088]
[1732551521666,17.48899088,243.56,243.48,4.1071]
[1732551521877,17.48899088,243.58,243.49,17.48899088]
[1732551522082,0.12549,243.57,243.49,17.48899088]
[1732551523169,17.48899088,243.62,243.53,17.48899088]
[1732551523391,9.2325,243.71,243.55,17.48899088]
[1732551523392,17.48899088,243.64,243.55,17.48899088]
[1732551523554,3.6946,243.6,243.5,4.1067]
[1732551523760,17.48899088,243.57,243.49,21.59569088]
[1732551524974,17.48899088,243.59,243.49,21.59569088]
[1732551525169,17.48899088,243.61,243.51,17.48899088]
[1732551525378,17.48899088,243.63,243.55,17.48899088]
[1732551525583,17.48899088,243.65,243.57,17.48899088]
[1732551526058,21.252,243.75,243.59,17.48899088]
[1732551526265,17.48899088,243.66,243.57,17.48899088]
[1732551526782,17.48899088,243.64,243.55,17.48899088]
[1732551526985,17.48899088,243.64,243.56,4.1057]
[1732551527363,17.48899088,243.6,243.51,17.48899088]
[1732551527667,17.48899088,243.56,243.49,17.48899088]
[1732551527867,17.48899088,243.58,243.49,17.48899088]
[1732551528066,17.48899088,243.58,243.5,4.1066]
[1732551528273,17.48899088,243.58,243.5,24.1066]
[1732551528581,17.48899088,243.58,243.51,17.48899088]
[1732551528781,17.48899088,243.58,243.49,21.59589088]
[1732551529360,17.48899088,243.58,243.51,17.48899088]
[1732551529661,17.48899088,243.6,243.51,17.48899088]
[1732551529987,17.48899088,243.56,243.49,4.1069]
[1732551530191,17.48899088,243.6,243.51,17.48899088]
[1732551530559,17.48899088,243.62,243.53,17.48899088]
[1732551530882,17.48899088,243.62,243.55,17.48899088]
[1732551531061,17.48899088,243.62,243.55,4.1058]
[1732551531268,17.48899088,243.6,243.55,4.1058]
[1732551531868,17.48899088,243.6,243.52,4.1063]
[1732551532074,17.48899088,243.6,243.45,10.2688]
[1732551532075,17.48899088,243.58,243.49,17.48899088]
[1732551532272,17.48899088,243.6,243.51,17.48899088]
[1732551533065,17.48899088,243.6,243.53,17.48899088]
[1732551533275,17.48899088,243.6,243.54,4.1061]
[1732551533583,17.48899088,243.62,243.54,4.1061]
[1732551533978,17.48899088,243.62,243.55,17.48899088]
[1732551534566,17.48899088,243.62,243.56,4.1057]
[1732551534774,10.0,243.78,243.56,4.1057]
[1732551534775,32.7849756,243.77,243.61,17.48899088]
[1732551534970,32.7849756,243.77,243.56,16.3748]
[1732551534971,17.48899088,243.72,243.64,17.48899088]
[1732551535186,17.48899088,243.68,243.6,17.48899088]
[1732551535391,17.48899088,243.66,243.58,17.48899088]
[1732551536398,25.71238784,243.75,243.54,4.106]
[1732551536399,17.48899088,243.59,243.54,4.106]
[1732551536583,10.12549,243.71,243.5,12.2691]
[1732551536584,17.48899088,243.57,243.5,33.86469088]
[1732551536789,17.48899088,243.57,243.5,16.3757]
[1732551537169,17.48899088,243.57,243.5,33.86469088]
[1732551537582,17.48899088,243.59,243.5,33.86469088]
[1732551538088,17.48899088,243.55,243.5,4.1066]
[1732551538900,17.48899088,243.55,243.44,48.761593]
[1732551538901,17.48899088,243.53,243.44,29.55609088]
[1732551539197,0.12549,243.59,243.44,4.1076]
[1732551539198,17.48899088,243.51,243.44,4.1076]
[1732551539377,17.48899088,243.49,243.4,17.48899088]
[1732551539563,17.48899088,243.49,243.42,17.48899088]
[1732551539971,17.48899088,243.51,243.44,17.48899088]
[1732551540176,17.48899088,243.53,243.46,17.48899088]
[1732551540588,17.48899088,243.55,243.46,17.48899088]
[1732551540775,3.82019,243.59,243.42,17.48899088]
[1732551540776,17.48899088,243.49,243.42,17.48899088]
[1732551540964,3.6948,243.58,243.42,17.48899088]
[1732551540965,17.48899088,243.51,243.42,17.48899088]
[1732551541162,17.48899088,243.51,243.44,17.48899088]
[1732551541371,17.48899088,243.53,243.46,17.48899088]
[1732551541594,17.48899088,243.55,243.48,17.48899088]
[1732551541764,39.3517,243.62,243.5,17.48899088]
[1732551541765,17.48899088,243.59,243.5,17.48899088]
[1732551541977,17.48899088,243.57,243.5,17.48899088]
[1732551542484,17.48899088,243.61,243.52,17.48899088]
[1732551542684,17.48899088,243.59,243.53,4.1062]
[1732551542889,17.48899088,243.61,243.53,4.1062]
[1732551543285,17.48899088,243.63,243.54,17.48899088]
[1732551543601,31.242,243.71,243.58,17.48899088]
[1732551543602,17.48899088,243.67,243.58,17.48899088]
[1732551544096,17.48899088,243.71,243.62,17.48899088]
[1732551544800,17.48899088,243.69,243.6,17.48899088]
[1732551545499,17.48899088,243.67,243.6,17.48899088]
[1732551546091,17.48899088,243.69,243.6,17.48899088]
[1732551546873,17.48899088,243.69,243.61,4.1049]
[1732551548201,17.48899088,243.69,243.62,17.48899088]
[1732551548778,17.48899088,243.69,243.61,4.1049]
[1732551549397,17.48899088,243.71,243.62,17.61448088]
[1732551549977,17.48899088,243.69,243.62,17.61448088]
[1732551550177,17.48899088,243.69,243.62,0.12549]
[1732551550411,17.48899088,243.68,243.61,4.1049]
[1732551550578,17.48899088,243.69,243.61,21.59389088]
[1732551550776,17.48899088,243.72,243.65,17.48899088]
[1732551550977,17.48899088,243.73,243.66,17.48899088]
[1732551551183,17.48899088,243.73,243.64,17.48899088]
[1732551551381,17.48899088,243.74,243.67,17.61448088]
[1732551551603,17.48899088,243.78,243.7,17.48899088]
[1732551552310,17.97696648,243.77,243.69,17.48899088]
[1732551552475,17.97696648,243.77,243.68,0.12549]
[1732551552476,17.48899088,243.75,243.68,4.1035]
[1732551552678,17.48899088,243.76,243.68,21.59249088]
[1732551553304,0.4879756,243.77,243.71,17.48899088]
[1732551553507,0.4879756,243.77,243.72,17.48899088]
[1732551553705,0.4879756,243.77,243.74,17.48899088]
[1732551554313,0.4879756,243.77,243.76,17.48899088]
[1732551554489,0.4879756,243.77,243.76,21.59129088]
[1732551554807,0.4879756,243.77,243.76,4.1023]
[1732551555188,0.4879756,243.77,243.74,4.1026]
[1732551555406,0.4879756,243.77,243.75,17.48899088]
[1732551556492,0.4879756,243.77,243.76,4.1023]
[1732551557382,0.4879756,243.77,243.76,21.59129088]
[1732551558300,0.4879756,243.77,243.76,21.71678088]
[1732551559590,22.4479,244.11,243.93,20.0]
[1732551559800,17.48899088,244.01,243.93,20.0]
[1732551560008,17.48899088,243.97,243.89,17.48899088]
[1732551560204,4.1761756,244.02,243.9,17.48899088]
[1732551560205,17.48899088,243.98,243.9,17.48899088]
[1732551560584,17.48899088,244.0,243.92,17.48899088]
[1732551561188,17.42780207,244.0,243.92,4.0997]
[1732551561394,21.60397767,244.02,243.93,17.42780207]
[1732551561597,0.4879756,244.02,243.95,17.42780207]
[1732551561802,0.4879756,244.02,243.97,17.42780207]
[1732551563082,0.4879756,244.02,243.99,17.42780207]
[1732551563403,0.4879756,244.02,243.99,21.52620207]
[1732551564112,0.4879756,244.02,243.95,17.42780207]
[1732551564299,0.4879756,244.02,243.97,17.42780207]
[1732551565211,0.4879756,244.02,244.01,17.42780207]
[1732551565386,0.4879756,244.02,244.01,58.19476607]
[1732551566402,3.6845,244.26,244.09,20.0]
[1732551566591,21.11230207,244.26,244.19,17.42780207]
[1732551568314,3.6845,244.26,244.2,17.42780207]
[1732551568689,21.11230207,244.26,244.18,17.42780207]
[1732551568992,3.6845,244.26,244.2,17.42780207]
[1732551569189,3.6845,244.26,244.11,0.12549]
[1732551569190,3.6841,244.3,244.24,17.42780207]
[1732551569408,17.42780207,244.32,244.24,17.42780207]
[1732551569590,3.6841,244.29,244.24,17.42780207]
[1732551570085,3.6839,244.31,244.26,17.42780207]
[1732551570285,21.8159,244.37,244.26,17.42780207]
[1732551570286,3.6836,244.33,244.26,17.42780207]
[1732551570508,3.6837,244.32,244.26,17.42780207]
[1732551570808,3.6839,244.31,244.26,17.42780207]
[1732551571120,17.42780207,244.32,244.24,17.42780207]
[1732551571299,21.8159,244.37,244.22,17.42780207]
[1732551571300,4.1723756,244.27,244.22,17.42780207]
[1732551571612,0.4879756,244.27,244.25,17.42780207]
[1732551572893,0.4879756,244.27,244.23,17.42780207]
[1732551573219,0.4879756,244.27,244.25,17.42780207]
[1732551575410,0.4879756,244.27,244.26,17.37791508]
[1732551575615,0.4879756,244.27,244.2,17.37791508]
[1732551576010,0.4879756,244.27,244.15,12.2142]
[1732551576188,0.4879756,244.27,244.22,17.37791508]
[1732551576694,0.4879756,244.27,244.24,17.37791508]
[1732551577286,0.4879756,244.27,244.22,17.37791508]
[1732551577287,4.1723756,244.27,244.22,17.37791508]
[1732551577487,0.4879756,244.27,244.22,17.37791508]
[1732551577690,0.4879756,244.27,244.24,17.37791508]
[1732551577912,3.6845,244.26,244.2,17.37791508]
[1732551578310,3.6845,244.26,244.18,17.37791508]
[1732551578636,17.37791508,244.19,244.08,17.37791508]
[1732551578796,10.0,244.24,244.08,17.37791508]
[1732551578797,17.37791508,244.15,244.08,17.37791508]
[1732551579119,17.37791508,244.21,244.14,17.37791508]
[1732551579314,17.50340508,244.25,244.16,17.37791508]
[1732551579493,17.37791508,244.25,244.16,17.37791508]
[1732551579817,17.37791508,244.23,244.16,17.37791508]
[1732551580115,3.6849,244.24,244.16,17.37791508]
[1732551580321,17.37791508,244.25,244.18,17.37791508]
[1732551580322,21.06261508,244.25,244.18,17.37791508]
[1732551580924,21.06261508,244.25,244.16,17.37791508]
[1732551581090,17.37791508,244.23,244.14,17.37791508]
[1732551581512,17.37791508,244.23,244.16,17.37791508]
[1732551582013,21.06301508,244.23,244.16,17.37791508]
[1732551582597,0.4879756,244.27,244.26,20.0]
[1732551582803,10.4879756,244.51,244.26,20.0]
[1732551582804,21.05951508,244.46,244.31,20.0]
[1732551583115,21.05951508,244.46,244.37,17.37791508]
[1732551583490,3.6816,244.46,244.39,17.37791508]
[1732551583690,21.05921508,244.48,244.41,17.37791508]
[1732551583894,17.37791508,244.46,244.37,17.37791508]
[1732551584195,17.37791508,244.46,244.39,17.37791508]
[1732551584400,21.05921508,244.48,244.39,17.37791508]
[1732551584713,0.12549,244.47,244.41,17.37791508]
[1732551585097,3.80689,244.47,244.41,17.37791508]
[1732551585294,3.80689,244.47,244.37,17.37791508]
[1732551585295,17.37791508,244.46,244.37,17.37791508]
[1732551585522,17.37791508,244.43,244.34,17.37791508]
[1732551586020,0.12549,244.4,244.32,17.37791508]
[1732551586727,17.37791508,244.39,244.32,17.37791508]
[1732551586930,0.4879756,244.51,244.38,17.37791508]
[1732551587123,17.37791508,244.49,244.38,17.37791508]
[1732551587425,17.37791508,244.49,244.33,12.891]
[1732551587426,0.12549,244.44,244.36,17.37791508]
[1732551587720,0.12549,244.4,244.34,17.37791508]
[1732551588324,19.30088051,244.38,244.3,19.30088051]
[1732551588502,19.30088051,244.38,244.28,23.39448051]
[1732551588704,19.30088051,244.38,244.3,19.30088051]
[1732551588910,22.98368051,244.38,244.3,19.30088051]
[1732551589121,0.12549,244.39,244.32,19.30088051]
[1732551589630,19.30088051,244.33,244.22,19.30088051]
[1732551589924,19.30088051,244.35,244.26,19.30088051]
[1732551590108,19.30088051,244.35,244.28,19.30088051]
[1732551590299,19.30088051,244.33,244.24,19.30088051]
[1732551590497,19.30088051,244.33,244.16,30.8846]
[1732551590498,19.30088051,244.25,244.14,10.0]
[1732551590727,19.30088051,244.25,244.04,16.381834]
[1732551590728,19.30088051,244.21,244.13,19.30088051]
[1732551591022,19.30088051,244.23,244.15,19.30088051]
[1732551591518,19.30088051,244.25,244.17,19.30088051]
[1732551592016,11.02714363,244.34,244.17,19.30088051]
[1732551592017,19.30088051,244.27,244.17,19.30088051]
[1732551592399,19.30088051,244.23,244.15,19.30088051]
[1732551592601,19.30088051,244.21,244.12,4.0963]
[1732551592922,19.30088051,244.19,244.11,19.30088051]
[1732551593231,19.30088051,244.19,244.1,4.0965]
[1732551594014,19.30088051,244.21,244.11,19.30088051]
[1732551594415,19.30088051,244.21,244.12,23.776884]
[1732551594733,19.30088051,244.17,244.09,19.30088051]
[1732551595025,0.12549,244.22,244.07,19.30088051]
[1732551595026,19.30088051,244.15,244.07,19.30088051]
[1732551595329,0.12549,244.22,243.99,19.30088051]
[1732551595330,19.30088051,244.09,243.99,19.30088051]
[1732551595619,19.30088051,244.13,244.05,19.30088051]
[1732551595827,19.30088051,244.11,244.03,19.30088051]
[1732551596011,22.98768051,244.11,244.01,23.39898051]
[1732551596322,19.30088051,244.11,244.03,19.30088051]
[1732551596706,19.30088051,244.09,244.01,4.0981]
[1732551597020,19.30088051,244.09,243.99,23.39928051]
[1732551597328,19.30088051,244.09,244.01,19.30088051]
[1732551597631,19.30088051,244.09,243.99,23.39928051]
[1732551597929,19.30088051,244.09,244.01,19.30088051]
[1732551598438,22.98778051,244.11,244.01,19.30088051]
[1732551598918,19.30088051,244.11,244.01,19.30088051]
[1732551599502,19.30088051,244.13,244.05,19.30088051]
[1732551599724,19.30088051,244.1,244.03,19.30088051]
[1732551600022,19.30088051,244.08,243.99,23.39918051]
[1732551600524,19.30088051,244.06,243.97,19.30088051]
[1732551600731,19.30088051,244.08,243.99,19.30088051]